bitfinex/quotes_SOLUSD_20250731
["timestamp","ask_amount","ask_price","bid_price","bid_amount"]
[1753958931650,52.55274655,182.31,182.3,0.77]
[1753958931846,56.65513332,182.31,182.3,0.77]
[1753958932075,56.6551534,182.31,182.3,0.77]
[1753958932751,60.75817709,182.31,182.3,0.77]
[1753958933075,55.27301446,182.31,182.3,0.77]
[1753958933268,55.27301446,182.31,182.3,0.06]
[1753958933767,55.97301446,182.31,182.3,0.06]
[1753958935059,61.45817709,182.31,182.3,0.06]
[1753958937085,63.51032622,182.31,182.3,0.06]
[1753958937382,63.5148136,182.31,182.3,0.06]
[1753958938682,61.46330621,182.31,182.3,0.06]
[1753958939286,63.51681891,182.31,182.3,0.06]
[1753958939782,60.76330621,182.31,182.3,0.77]
[1753958940256,86.76330621,182.31,182.3,0.77]
[1753958940452,84.56435621,182.31,182.3,0.77]
[1753958940654,86.76306421,182.31,182.3,0.77]
[1753958940898,86.76306421,182.31,182.3,0.06]
[1753958941095,104.24774818,182.31,182.3,0.06]
[1753958941261,80.3012915,182.31,182.29,0.06]
[1753958941575,15.72919358,182.3,182.29,0.06]
[1753958942486,21.21562765,182.3,182.29,0.06]
[1753958943167,25.82992925,182.3,182.29,0.06]
[1753958943365,28.02900025,182.3,182.29,0.06]
[1753958944681,30.08216854,182.3,182.29,0.06]
[1753958948389,28.02900025,182.3,182.29,0.06]
[1753958951973,27.32900025,182.3,182.29,0.06]
[1753958952176,22.71469865,182.3,182.29,0.06]
[1753958952792,22.71469865,182.3,182.29,0.77]
[1753958954171,22.7117058,182.3,182.29,0.77]
[1753958955273,22.7117058,182.3,182.29,0.06]
[1753958957096,22.70747652,182.3,182.29,0.06]
[1753958959201,43.38121288,182.3,182.29,0.77]
[1753958959399,33.79327525,182.3,182.29,0.77]
[1753958959582,7.79327525,182.3,182.29,0.77]
[1753958959783,45.81327525,182.3,182.29,0.77]
[1753958959986,54.42593141,182.3,182.29,0.77]
[1753958960390,54.42593141,182.3,182.29,0.06]
[1753958960699,58.52640584,182.3,182.29,0.06]
[1753958961076,85.22640584,182.3,182.29,0.06]
[1753958961280,59.22640584,182.3,182.29,0.06]
[1753958962992,59.22640312,182.3,182.29,0.06]
[1753958965490,63.84070472,182.3,182.29,0.06]
[1753958966797,80.62538869,182.3,182.29,0.06]
[1753958967886,82.82458069,182.3,182.29,0.06]
[1753958968300,78.21027909,182.3,182.29,0.06]
[1753958969899,77.51027909,182.3,182.29,0.06]
[1753958970900,78.21027909,182.3,182.29,0.06]
[1753958973304,78.72274672,182.3,182.29,0.06]
[1753958973513,82.82590288,182.3,182.29,0.06]
[1753958973707,82.8285823,182.3,182.29,0.06]
[1753958975182,84.88006907,182.3,182.29,1e-08]
[1753958975502,80.26576747,182.3,182.29,1e-08]
[1753958976110,80.26576747,182.3,182.28,1e-08]
[1753958976416,42.78468397,182.27,182.25,0.06]
[1753958976576,53.10494121,182.26,182.25,0.06]
[1753958976781,53.80494121,182.26,182.25,0.06]
[1753958977194,56.00449621,182.26,182.25,0.06]
[1753958977697,68.51326677,182.26,182.25,0.06]
[1753958978199,73.99993416,182.26,182.25,0.06]
[1753958981702,73.99462385,182.26,182.25,0.06]
[1753958983309,73.29462385,182.26,182.25,0.06]
[1753958983514,60.78585329,182.26,182.25,0.75]
[1753958983715,19.57866065,182.26,182.25,0.75]
[1753958984014,84.58629829,182.26,182.25,0.75]
[1753958984189,54.48314716,182.26,182.25,0.75]
[1753958984508,16.40314716,182.26,182.25,0.75]
[1753958984811,54.48314716,182.26,182.25,0.75]
[1753958985307,16.40314716,182.26,182.25,0.75]
[1753958985490,54.48314716,182.26,182.25,0.75]
[1753958986586,47.25810867,182.26,182.25,0.75]
[1753958987006,41.77144128,182.26,182.25,0.75]
[1753958989021,47.25810867,182.26,182.25,0.75]
[1753958989200,50.38530131,182.26,182.25,0.75]
[1753958991713,47.25810867,182.26,182.25,0.75]
[1753958998495,50.38530131,182.26,182.25,0.06]
[1753958999295,47.25810867,182.26,182.25,0.06]
[1753958999516,47.25810867,182.26,182.25,0.73]
[1753959000715,50.38530131,182.26,182.25,0.06]
[1753959001521,12.30530131,182.26,182.25,0.06]
[1753959001823,47.25810867,182.26,182.25,0.06]
[1753959002324,9.17810867,182.26,182.25,0.06]
[1753959002496,47.25810867,182.26,182.25,0.06]
[1753959003318,55.13756099,182.26,182.25,0.06]
[1753959003515,55.11756099,182.26,182.25,0.06]
[1753959003695,55.11754408,182.26,182.25,0.06]
[1753959004312,17.05754408,182.26,182.25,0.06]
[1753959004700,54.45754408,182.26,182.25,0.06]
[1753959005199,54.45754408,182.26,182.25,0.73]
[1753959005394,54.45754408,182.26,182.25,0.06]
[1753959005998,54.45754408,182.26,182.25,0.73]
[1753959006404,54.45754408,182.26,182.25,0.06]
[1753959006640,16.39754408,182.26,182.25,0.06]
[1753959006808,55.11849089,182.26,182.25,0.06]
[1753959007003,51.99129825,182.26,182.25,0.06]
[1753959007206,55.11849089,182.26,182.25,0.06]
[1753959007412,54.45849089,182.26,182.25,0.06]
[1753959007606,54.45849089,182.26,182.25,0.73]
[1753959009710,51.33129825,182.26,182.25,0.73]
[1753959012414,51.33129825,182.26,182.25,0.06]
[1753959012603,54.45849089,182.26,182.25,0.06]
[1753959012799,55.11849089,182.26,182.25,0.06]
[1753959013929,51.33129825,182.26,182.25,0.06]
[1753959015013,51.33129825,182.26,182.25,0.73]
[1753959019447,51.33129825,182.26,182.25,0.06]
[1753959019647,47.23810867,182.26,182.25,0.06]
[1753959019940,47.26810867,182.26,182.25,0.06]
[1753959020133,9.20810867,182.26,182.25,0.73]
[1753959020442,47.26810867,182.26,182.25,0.73]
[1753959022537,9.20810867,182.26,182.25,0.73]
[1753959022736,47.24810867,182.26,182.25,0.73]
[1753959023936,9.20810867,182.26,182.25,0.73]
[1753959024142,47.24810867,182.26,182.25,0.06]
[1753959024342,47.93810867,182.26,182.25,0.06]
[1753959024642,52.03474586,182.26,182.25,0.06]
[1753959025645,13.99474586,182.26,182.25,0.06]
[1753959025845,52.03474586,182.26,182.25,0.06]
[1753959027250,59.2601435,182.26,182.25,0.06]
[1753959027622,61.4596985,182.26,182.25,0.06]
[1753959028446,24.61608397,182.25,182.23,1e-08]
[1753959028617,24.61608397,182.25,182.19,0.2]
[1753959028618,26.0,182.21,182.19,0.2]
[1753959028812,53.0735554,182.2,182.19,0.2]
[1753959029237,59.2520296,182.2,182.19,0.2]
[1753959029546,55.15374531,182.2,182.19,0.2]
[1753959033316,51.05710812,182.2,182.19,0.2]
[1753959037628,47.36566684,182.2,182.19,0.2]
[1753959045246,71.90650176,182.2,182.19,0.2]
[1753959045549,74.10690376,182.2,182.19,0.2]
[1753959046149,16.78468397,182.19,182.18,0.2]
[1753959046348,24.27594562,182.19,182.18,0.2]
[1753959046831,26.47646862,182.19,182.18,0.2]
[1753959047759,31.96524407,182.19,182.18,0.2]
[1753959047929,36.04746579,182.19,182.18,0.2]
[1753959048130,36.04746579,182.19,182.18,1e-08]
[1753959051758,16.78468397,182.13,182.11,0.2]
[1753959051939,41.18719264,182.12,182.11,0.2]
[1753959052138,67.18719264,182.12,182.11,0.2]
[1753959053236,89.46276174,182.12,182.11,0.2]
[1753959053438,90.17276174,182.12,182.11,0.2]
[1753959053637,89.46276174,182.12,182.11,0.2]
[1753959054257,91.66401074,182.12,182.11,0.2]
[1753959054641,92.37401074,182.12,182.11,0.2]
[1753959055247,91.66401074,182.12,182.11,0.2]
[1753959056044,66.37401074,182.12,182.11,0.2]
[1753959058884,70.03354085,182.12,182.11,0.2]
[1753959060439,65.66401074,182.12,182.11,0.2]
[1753959060640,66.37401074,182.12,182.11,0.2]
[1753959061042,28.31401074,182.12,182.11,0.2]
[1753959061259,66.37401074,182.12,182.11,0.2]
[1753959061456,28.31401074,182.12,182.11,0.2]
[1753959061660,66.37401074,182.12,182.11,0.2]
[1753959063490,28.31401074,182.12,182.11,0.2]
[1753959063663,66.37401074,182.12,182.11,0.2]
[1753959064057,28.31401074,182.12,182.11,0.2]
[1753959064264,66.37401074,182.12,182.11,0.2]
[1753959064462,65.66401074,182.12,182.11,0.2]
[1753959065354,69.32240061,182.12,182.11,0.2]
[1753959065774,10.81932677,182.12,182.11,0.2]
[1753959065978,69.55088513,182.12,182.11,0.89]
[1753959066960,5.49064159,182.13,182.11,0.89]
[1753959067179,38.06,182.12,182.11,0.2]
[1753959067855,38.06,182.12,182.11,0.89]
[1753959073480,43.55088513,182.12,182.11,0.89]
[1753959074469,43.55088513,182.12,182.11,0.2]
[1753959077266,43.55088513,182.12,182.11,0.89]
[1753959077887,43.55088513,182.12,182.11,0.2]
[1753959081093,5.49088513,182.12,182.11,0.2]
[1753959081293,43.55088513,182.12,182.11,0.2]
[1753959081611,47.37807777,182.12,182.11,0.2]
[1753959081901,51.04944979,182.12,182.11,0.2]
[1753959082070,67.83413376,182.12,182.11,0.2]
[1753959082274,71.91306915,182.12,182.11,0.2]
[1753959083273,67.83413376,182.12,182.11,0.2]
[1753959083473,71.9145895,182.12,182.11,0.2]
[1753959087878,71.9194002,182.12,182.11,0.2]
[1753959089292,76.00694609,182.12,182.11,0.2]
[1753959091495,37.94694609,182.12,182.11,1e-08]
[1753959091798,76.00937961,182.12,182.11,1e-08]
[1753959092094,84.53488583,182.12,182.11,0.69000001]
[1753959092275,84.53488583,182.12,182.11,1e-08]
[1753959092480,85.23488583,182.12,182.11,1e-08]
[1753959093678,76.0195698,182.12,182.11,1e-08]
[1753959094374,76.02786196,182.12,182.11,1e-08]
[1753959101326,58.54317799,182.12,182.11,0.69000001]
[1753959101524,20.48317799,182.12,182.11,0.69000001]
[1753959101730,84.54317799,182.12,182.11,0.69000001]
[1753959101937,58.54317799,182.12,182.11,0.69000001]
[1753959102118,84.54317799,182.12,182.11,0.69000001]
[1753959102818,46.48317799,182.12,182.11,0.69000001]
[1753959103017,81.41598535,182.12,182.11,0.69000001]
[1753959103208,84.54317799,182.12,182.11,0.69000001]
[1753959103410,84.54933546,182.12,182.11,0.69000001]
[1753959106240,84.55228023,182.12,182.11,0.69000001]
[1753959107642,81.42508759,182.12,182.11,0.69000001]
[1753959107838,84.58228023,182.12,182.11,0.69000001]
[1753959109844,46.52228023,182.12,182.11,0.69000001]
[1753959110030,84.58228023,182.12,182.11,0.69000001]
[1753959110848,84.58257892,182.12,182.11,0.69000001]
[1753959111542,84.58257892,182.12,182.11,1e-08]
[1753959112044,80.48644204,182.12,182.11,1e-08]
[1753959112236,84.58316399,182.12,182.11,1e-08]
[1753959112950,80.61980072,182.12,182.11,1e-08]
[1753959114346,80.63214083,182.12,182.11,1e-08]
[1753959115747,76.53533877,182.12,182.11,1e-08]
[1753959116246,76.53523738,182.12,182.11,1e-08]
[1753959117244,72.43861682,182.12,182.11,1e-08]
[1753959117952,76.53538556,182.12,182.11,1e-08]
[1753959118322,72.43861682,182.12,182.11,1e-08]
[1753959119362,76.53557195,182.12,182.11,1e-08]
[1753959119537,80.63252708,182.12,182.11,1e-08]
[1753959122655,80.63379119,182.12,182.11,1e-08]
[1753959122965,42.57379119,182.12,182.11,1e-08]
[1753959123158,41.92379119,182.12,182.11,1e-08]
[1753959123368,41.92379119,182.12,182.11,0.70000001]
[1753959123369,84.59029884,182.12,182.11,0.70000001]
[1753959124934,101.37498281,182.12,182.11,0.70000001]
[1753959126256,81.4631062,182.12,182.11,0.70000001]
[1753959126435,84.59029884,182.12,182.11,0.70000001]
[1753959126633,84.59314511,182.12,182.11,0.70000001]
[1753959127544,81.46595247,182.12,182.11,0.70000001]
[1753959127743,80.64019529,182.12,182.11,1e-08]
[1753959129131,76.54433582,182.12,182.11,1e-08]
[1753959129455,80.64365072,182.12,182.11,1e-08]
[1753959132150,80.64339562,182.12,182.11,1e-08]
[1753959132972,77.5162462,182.12,182.11,1e-08]
[1753959133145,80.64343884,182.12,182.11,1e-08]
[1753959133340,79.99343884,182.12,182.11,1e-08]
[1753959133549,72.25387999,182.12,182.11,0.70000001]
[1753959133741,101.38107263,182.12,182.11,0.70000001]
[1753959133944,97.69117966,182.12,182.11,0.70000001]
[1753959134152,101.38066274,182.12,182.11,0.70000001]
[1753959136368,101.3808197,182.12,182.11,0.70000001]
[1753959136871,84.59633591,182.12,182.11,0.70000001]
[1753959137072,81.46914327,182.12,182.11,0.70000001]
[1753959140170,77.36975574,182.12,182.11,0.70000001]
[1753959140852,71.87887061,182.12,182.11,0.70000001]
[1753959141252,77.36975574,182.12,182.11,0.70000001]
[1753959142665,71.87887061,182.12,182.11,0.70000001]
[1753959146751,45.87887061,182.12,182.11,3.82719265]
[1753959147358,41.77948308,182.12,182.11,3.82719265]
[1753959151755,38.09,182.12,182.11,3.82719265]
[1753959161071,0.03,182.12,182.11,3.82719265]
[1753959161274,38.07,182.12,182.11,3.82719265]
[1753959161986,38.07,182.12,182.11,9.31837929]
[1753959162992,38.07,182.12,182.11,3.82719265]
[1753959171476,38.07,182.12,182.11,3.12719265]
[1753959173596,38.07,182.12,182.11,3.79719265]
[1753959173969,38.07,182.12,182.11,3.12719265]
[1753959179705,38.07,182.12,182.11,3.79719265]
[1753959179907,38.07,182.12,182.11,9.28837929]
[1753959180205,38.07,182.12,182.11,3.79719265]
[1753959181105,38.07,182.12,182.11,3.12719265]
[1753959181779,38.07,182.12,182.11,3.79719265]
[1753959184292,38.07,182.12,182.11,3.12719265]
[1753959187300,38.07,182.12,182.11,1e-08]
[1753959187610,38.07,182.12,182.11,3.12719265]
[1753959188998,38.75,182.12,182.11,3.12719265]
[1753959189309,38.07,182.12,182.11,3.12719265]
[1753959190013,38.75,182.12,182.11,3.12719265]
[1753959191201,42.44839036,182.12,182.11,3.12719265]
[1753959194613,41.76839036,182.12,182.11,3.12719265]
[1753959201915,41.76839036,182.12,182.11,3.84719265]
[1753959205313,41.76839036,182.12,182.11,3.12719265]
[1753959210515,41.76839036,182.12,182.11,1e-08]
[1753959210698,41.76839036,182.12,182.11,3.12719265]
[1753959211418,42.42839036,182.12,182.11,1e-08]
[1753959211622,42.42839036,182.12,182.11,3.12719265]
[1753959211924,42.42839036,182.12,182.11,1e-08]
[1753959212501,55.15802476,182.12,182.11,1e-08]
[1753959212708,52.03083212,182.12,182.11,1e-08]
[1753959212911,55.15802476,182.12,182.11,1e-08]
[1753959213825,52.03083212,182.12,182.11,1e-08]
[1753959217327,55.15802476,182.12,182.11,1e-08]
[1753959219414,85.25808719,182.12,182.11,1e-08]
[1753959219615,91.68298719,182.12,182.11,1e-08]
[1753959219934,93.24808719,182.12,182.11,1e-08]
[1753959220624,84.03277116,182.12,182.11,1e-08]
[1753959220819,88.64462501,182.12,182.11,1e-08]
[1753959222205,84.03277116,182.12,182.11,1e-08]
[1753959222905,88.64462501,182.12,182.11,1e-08]
[1753959223309,84.03277116,182.12,182.11,1e-08]
[1753959224211,84.01166031,182.12,182.11,1e-08]
[1753959224410,86.21315131,182.12,182.11,1e-08]
[1753959232554,86.19516224,182.12,182.11,1e-08]
[1753959233045,82.11308888,182.12,182.11,1e-08]
[1753959233254,86.19524403,182.12,182.11,1e-08]
[1753959236055,86.18526792,182.12,182.11,1e-08]
[1753959236658,86.18505412,182.12,182.11,1e-08]
[1753959242454,77.41166287,182.12,182.11,1e-08]
[1753959242754,80.53885551,182.12,182.11,1e-08]
[1753959243544,80.55885551,182.12,182.11,1e-08]
[1753959244966,80.55970754,182.12,182.11,1e-08]
[1753959245365,76.4775431,182.12,182.11,1e-08]
[1753959245957,80.55992887,182.12,182.11,1e-08]
[1753959246159,73.47502887,182.12,182.11,1e-08]
[1753959246457,69.3926431,182.12,182.11,1e-08]
[1753959247546,78.23853587,182.12,182.11,1e-08]
[1753959247741,74.15558953,182.12,182.11,1e-08]
[1753959248146,74.1555965,182.12,182.11,1e-08]
[1753959248362,78.23908031,182.12,182.11,1e-08]
[1753959249868,78.240619,182.12,182.11,1e-08]
[1753959250253,78.24080395,182.12,182.11,1e-08]
[1753959250770,74.1555965,182.12,182.11,1e-08]
[1753959251268,78.24181928,182.12,182.11,1e-08]
[1753959255260,77.56181928,182.12,182.11,1e-08]
[1753959257575,77.56181928,182.12,182.11,0.66000001]
[1753959258389,77.56181928,182.12,182.11,1e-08]
[1753959259081,74.43462664,182.12,182.11,0.66000001]
[1753959259259,77.56181928,182.12,182.11,0.66000001]
[1753959260872,77.56181928,182.12,182.11,1e-08]
[1753959261381,77.57787675,182.12,182.11,1e-08]
[1753959261577,78.27787675,182.12,182.11,1e-08]
[1753959261887,78.26850198,182.12,182.11,1e-08]
[1753959262186,82.87977147,182.12,182.11,1e-08]
[1753959263286,82.19373441,182.12,182.11,1e-08]
[1753959266157,82.89373441,182.12,182.11,1e-08]
[1753959267781,82.89763992,182.12,182.11,1e-08]
[1753959269485,82.19763992,182.12,182.11,1e-08]
[1753959269663,82.89763992,182.12,182.11,1e-08]
[1753959271869,82.9004174,182.12,182.11,1e-08]
[1753959273765,82.9004792,182.12,182.11,1e-08]
[1753959276771,78.28920971,182.12,182.11,1e-08]
[1753959277186,26.0,182.1,182.09,0.74]
[1753959277489,79.06214961,182.1,182.09,0.74]
[1753959277871,83.34214961,182.1,182.09,0.74]
[1753959278190,88.8336378,182.1,182.09,0.06]
[1753959279664,88.8336378,182.1,182.09,0.74]
[1753959280493,88.8336378,182.1,182.09,0.06]
[1753959284000,88.8336378,182.1,182.09,0.74]
[1753959285400,88.83658202,182.1,182.09,0.74]
[1753959288201,84.7306128,182.1,182.09,0.74]
[1753959288403,88.83703139,182.1,182.09,0.74]
[1753959290098,50.79703139,182.1,182.09,0.74]
[1753959290277,88.83703139,182.1,182.09,0.74]
[1753959294202,88.84001336,182.1,182.09,0.74]
[1753959295104,88.84001336,182.1,182.09,0.06]
[1753959302227,89.56001336,182.1,182.09,0.06]
[1753959304213,26.0,182.07,182.06,0.2]
[1753959304391,79.06852517,182.07,182.06,0.2]
[1753959304793,84.03852517,182.07,182.06,0.2]
[1753959305195,84.03852517,182.07,182.06,0.89]
[1753959306292,85.42475973,182.07,182.06,0.89]
[1753959309034,85.42475973,182.07,182.06,0.2]
[1753959313054,85.42475973,182.07,182.06,0.89]
[1753959314723,85.41491332,182.07,182.06,0.89]
[1753959315623,85.41464572,182.07,182.06,0.89]
[1753959319729,85.41464572,182.07,182.06,0.2]
[1753959319933,85.41464572,182.07,182.06,0.89]
[1753959324444,85.41464572,182.07,182.06,0.2]
[1753959324845,86.10464572,182.07,182.06,0.2]
[1753959331668,81.31860126,182.07,182.06,0.87]
[1753959331870,85.41778175,182.07,182.06,0.87]
[1753959332074,85.41778175,182.07,182.06,0.2]
[1753959332892,76.79819608,182.07,182.06,0.87]
[1753959333267,85.41778175,182.07,182.06,0.2]
[1753959333982,86.10778175,182.07,182.06,0.2]
[1753959334759,90.20676195,182.07,182.06,0.2]
[1753959334965,119.50021648,182.07,182.06,1e-08]
[1753959335182,133.58644618,182.07,182.06,1e-08]
[1753959336777,128.97337225,182.07,182.04,4.34]
[1753959337089,19.91187661,182.05,182.04,4.34]
[1753959337292,75.79539182,182.05,182.04,1e-08]
[1753959337475,76.48539182,182.05,182.04,1e-08]
[1753959338071,84.02515491,182.05,182.04,1e-08]
[1753959338891,16.78468397,182.01,182.0,0.2]
[1753959339070,69.83905289,182.01,182.0,0.2]
[1753959339393,66.43007269,182.01,182.0,0.2]
[1753959339692,68.63277669,182.01,182.0,0.2]
[1753959340074,78.21526624,182.01,182.0,0.2]
[1753959342068,85.64005587,182.01,182.0,0.2]
[1753959342270,47.60005587,182.01,182.0,0.2]
[1753959342688,85.64005587,182.01,182.0,0.2]
[1753959343598,85.61230382,182.01,182.0,0.2]
[1753959345291,81.53244663,182.01,182.0,0.2]
[1753959346879,43.49244663,182.01,182.0,0.2]
[1753959347084,56.63297303,182.01,182.0,0.87]
[1753959347286,52.55311584,182.01,182.0,0.87]
[1753959347795,56.62972166,182.01,182.0,0.2]
[1753959349792,18.58972166,182.01,182.0,0.2]
[1753959349999,56.62972166,182.01,182.0,0.2]
[1753959352708,57.27972166,182.01,182.0,0.2]
[1753959352901,56.62972166,182.01,182.0,0.2]
[1753959354587,56.62972166,182.01,182.0,0.91]
[1753959355110,56.62972166,182.01,182.0,0.2]
[1753959355814,56.62972166,182.01,182.0,0.91]
[1753959356509,56.62972166,182.01,182.0,0.2]
[1753959357294,57.27972166,182.01,182.0,0.2]
[1753959357819,74.06440563,182.01,182.0,0.2]
[1753959359425,81.48919526,182.01,182.0,0.2]
[1753959363621,84.18472059,182.01,182.0,0.2]
[1753959368821,80.10811477,182.01,182.0,0.2]
[1753959369128,80.10811477,182.01,182.0,1e-08]
[1753959369598,88.26072563,182.01,182.0,1e-08]
[1753959370394,88.2613853,182.01,182.0,1e-08]
[1753959374126,88.26505161,182.01,182.0,1e-08]
[1753959375021,88.2705208,182.01,182.0,1e-08]
[1753959375402,88.27186138,182.01,182.0,1e-08]
[1753959378202,90.3166132,182.01,182.0,1e-08]
[1753959378616,94.92409869,182.01,182.0,1e-08]
[1753959379109,42.78468397,181.98,181.97,0.71]
[1753959379305,95.82463881,181.98,181.97,0.71]
[1753959379509,95.84637462,181.98,181.97,0.71]
[1753959380909,115.07925735,181.98,181.92,0.1]
[1753959381110,3.12719264,181.96,181.92,0.1]
[1753959381313,29.12719264,181.93,181.92,0.1]
[1753959381509,74.96894944,181.93,181.92,0.1]
[1753959382916,80.46556901,181.93,181.92,0.1]
[1753959383930,80.46730809,181.93,181.92,0.1]
[1753959387828,76.3728278,181.93,181.92,0.1]
[1753959388138,80.46509995,181.93,181.92,0.1]
[1753959389939,42.40509995,181.93,181.92,0.1]
[1753959390134,80.46509995,181.93,181.92,0.78]
[1753959390538,80.46509995,181.93,181.92,0.1]
[1753959392126,80.46263204,181.93,181.92,0.1]
[1753959392734,80.46281541,181.93,181.92,0.1]
[1753959396442,80.46281541,181.93,181.92,0.78]
[1753959396443,33.7790032,181.93,181.92,0.78]
[1753959396740,67.74901559,181.93,181.92,0.78]
[1753959396966,3.68901559,181.93,181.92,3.90719264]
[1753959397151,5.4964365,181.94,181.92,3.90719264]
[1753959397349,38.06,181.93,181.92,3.22719264]
[1753959398047,38.06,181.93,181.92,3.90719264]
[1753959398649,38.06,181.93,181.92,0.78]
[1753959398845,43.55661957,181.93,181.92,0.78]
[1753959403052,77.05795724,181.93,181.92,0.1]
[1753959403224,59.24457891,181.93,181.92,0.1]
[1753959404035,76.02926288,181.93,181.92,0.1]
[1753959404230,71.93615391,181.93,181.92,0.1]
[1753959404833,76.02889189,181.93,181.92,0.1]
[1753959405948,67.84264121,181.93,181.92,0.1]
[1753959406160,76.02707145,181.93,181.92,1e-08]
[1753959406335,26.0,181.89,181.8,1.6196]
[1753959406537,24.51968397,181.92,181.81,0.68]
[1753959406538,29.12719264,181.85,181.81,0.68]
[1753959406756,41.28719264,181.84,181.81,0.68]
[1753959407059,46.7865882,181.84,181.81,0.68]
[1753959407365,46.7865882,181.84,181.8,1.6196]
[1753959407535,46.7865882,181.84,181.81,0.68]
[1753959407853,41.28719264,181.84,181.81,0.68]
[1753959408548,41.28719264,181.84,181.81,0.66]
[1753959408846,43.06864143,181.84,181.81,0.66]
[1753959409047,48.56806234,181.84,181.8,1.6196]
[1753959409233,31.49929541,181.85,181.74,7.08925129]
[1753959409437,3.67669559,181.84,181.81,6.49554143]
[1753959409631,38.18,181.83,181.81,6.49554143]
[1753959409831,38.18,181.83,181.81,1.5869]
[1753959410044,38.18,181.83,181.81,6.49554143]
[1753959410753,38.18,181.83,181.82,0.68]
[1753959410949,12.679541,181.89,181.82,5.58864143]
[1753959411249,26.0,181.86,181.85,4.90864143]
[1753959411551,64.2,181.86,181.85,4.90864143]
[1753959411745,64.2,181.86,181.84,0.72]
[1753959411984,64.2,181.86,181.83,4.90864143]
[1753959412157,64.2,181.86,181.84,4.90864143]
[1753959412844,64.2,181.86,181.84,5.62864143]
[1753959415538,26.0,181.86,181.84,5.62864143]
[1753959415733,38.2,181.85,181.84,5.62864143]
[1753959417058,38.2,181.85,181.84,0.72]
[1753959417262,38.2,181.85,181.84,5.62864143]
[1753959418550,38.2,181.85,181.84,4.90864143]
[1753959419357,38.2,181.85,181.81,7.14709486]
[1753959419535,38.2,181.85,181.84,4.90864143]
[1753959421646,38.9,181.85,181.83,4.90864143]
[1753959421840,0.7,181.84,181.83,4.90864143]
[1753959422078,38.2,181.85,181.83,4.90864143]
[1753959422373,44.39906063,181.85,181.83,4.90864143]
[1753959422850,0.7,181.84,181.83,4.90864143]
[1753959423042,0.7,181.84,181.82,4.90864143]
[1753959423363,38.2,181.83,181.82,4.90864143]
[1753959423950,38.2,181.83,181.81,1.6469]
[1753959423951,44.39968835,181.83,181.81,1.6469]
[1753959424161,0.7,181.82,181.81,0.06]
[1753959425469,6.199945,181.82,181.81,0.06]
[1753959425659,5.499945,181.82,181.81,0.06]
[1753959425967,6.199945,181.82,181.81,0.06]
[1753959428653,11.10858643,181.82,181.81,0.06]
[1753959428852,6.199945,181.82,181.81,0.06]
[1753959430359,11.10858643,181.82,181.81,0.06]
[1753959431366,37.10858643,181.82,181.81,0.06]
[1753959431871,53.8932704,181.82,181.81,0.06]
[1753959432050,33.18746093,181.82,181.81,0.06]
[1753959432253,37.26557142,181.82,181.81,0.06]
[1753959432572,33.18746093,181.82,181.81,0.06]
[1753959432751,37.26486014,181.82,181.81,1e-08]
[1753959433059,73.86216014,181.82,181.81,1e-08]
[1753959433375,73.85926714,181.82,181.81,1e-08]
[1753959433570,79.48790814,181.82,181.81,1e-08]
[1753959438079,75.81641761,181.82,181.81,1e-08]
[1753959438269,79.4799178,181.82,181.81,1e-08]
[1753959438478,79.47485501,181.82,181.81,1e-08]
[1753959439288,75.44541159,181.82,181.81,1e-08]
[1753959440164,79.51422354,181.82,181.81,1e-08]
[1753959440475,75.44541159,181.82,181.81,1e-08]
[1753959441367,71.7819114,181.82,181.81,1e-08]
[1753959442162,79.51310983,181.82,181.81,1e-08]
[1753959442360,75.44426416,181.82,181.81,1e-08]
[1753959442560,79.5125152,181.82,181.81,1e-08]
[1753959443458,84.42115663,181.82,181.81,1e-08]
[1753959443654,45.32081896,181.82,181.81,1e-08]
[1753959443960,79.5925152,181.82,181.81,1e-08]